[Event "FIDE WYCC Girls U18 2023"]
[Site "Montesilvano"]
[Date "2023.11.23"]
[Round "10.14"]
[White "Groeschel, Karoline"]
[Black "Dakic, Marta"]
[Result "1/2-1/2"]
[ECO "C78"]
[WhiteElo "1924"]
[BlackElo "2013"]
[Annotator "NA RC"]
[PlyCount "139"]
[EventDate "2023.11.13"]
[EventType "swiss"]
[EventCountry "ITA"]
[SourceTitle "playchess.com"]
[Source "ChessBase"]
[SourceQuality "1"]
[TimeControl "40/5400+30:1800+30"]

1. e4 {[%emt 0:00:02]} e5 {[%emt 0:03:49]} 2. Nf3 {[%emt 0:00:04]} Nc6 {[%emt 0:00:18]} 3. Bb5 {[%emt 0:00:05]} a6 {[%emt 0:00:26]} 4. Ba4 {[%emt 0:00:05]} Nf6 {[%emt 0:00:08]} 5. O-O {[%emt 0:00:05]} b5 {[%emt 0:00:56]} 6. Bb3 {[%emt 0:00:05]} Be7 {[%emt 0:00:04]} 7. d4 {[%emt 0:00:09]} exd4 {[%emt 0:04:50]} 8. e5 {[%emt 0:00:55]} Ne4 {[%emt 0:00:52]} 9. Bd5 {[%emt 0:05:58]} Nc5 {[%emt 0:04:24]} 10. Nxd4 {[%emt 0:02:46]} Bb7 {[%emt 0:07:17]} 11. Nf5 {[%emt 0:16:48]} O-O {[%emt 0:09:11]} 12. Re1 {[%emt 0:11:31]} d6 {[%emt 0:10:41]} 13. exd6 {[%emt 0:22:05]} Bxd6 {[%emt 0:00:13]} 14. Qg4 {[%emt 0:04:48]} g6 {[%emt 0:01:42]} 15. Nh6+ {[%emt 0:12:53]} Kg7 {[%emt 0:00:13]} 16. Qf3 {[%emt 0:00:50]} Ne5 {[%emt 0:04:13]} 17. Rxe5 {[%emt 0:02:35]} Bxe5 {[%emt 0:00:06]} 18. Bxb7 {[%emt 0:00:07]} Nxb7 {[%emt 0:00:10]} 19. Ng4 {[%emt 0:00:45]} f6 {[%emt 0:04:08]} 20. Bh6+ {[%emt 0:01:06]} Kg8 {[%emt 0:02:03]} 21. Nxe5 {[%emt 0:02:18]} Qd4 {[%emt 0:03:19]} 22. Nc3 {[%emt 0:05:48]} fxe5 {[%emt 0:07:07]} 23. Bxf8 {[%emt 0:00:28]} Rxf8 {[%emt 0:00:05]} 24. Qe2 {[%emt 0:00:34]} Nd6 {[%emt 0:04:34]} 25. a3 {[%emt 0:00:50]} a5 {[%emt 0:11:19]} 26. Rd1 {[%emt 0:01:02]} Qf4 {[%emt 0:00:29]} 27. Nd5 {[%emt 0:02:03]} Qf7 {[%emt 0:00:31]} 28. b3 {[%emt 0:02:28]} c6 {[%emt 0:07:56]} 29. Nc3 {[%emt 0:00:44]} Qf6 {[%emt 0:00:08]} 30. f3 {[%emt 0:02:22]} Nf5 {[%emt 0:03:55]} 31. a4 {[%emt 0:00:50]} Qe7 {[%emt 0:01:18]} 32. Qf2 {[%emt 0:01:16]} Qb4 {[%emt 0:03:15]} 33. Qd2 {[%emt 0:01:27]} Qd4+ {[%emt 0:03:13]} 34. Kh1 {[%emt 0:00:33]} Ne3 {[%emt 0:01:37]} 35. Qxd4 {[%emt 0:00:15]} exd4 {[%emt 0:00:04]} 36. Rxd4 {[%emt 0:00:09]} Nxc2 {[%emt 0:00:05]} 37. Rd2 {[%emt 0:00:23]} Re8 {[%emt 0:00:39]} 38. Kg1 {[%emt 0:00:54]} Na1 {[%emt 0:00:47]} 39. axb5 {[%emt 0:00:45]} cxb5 {[%emt 0:00:30]} 40. Nxb5 {[%emt 0:00:00]} Nxb3 {[%emt 0:00:00]} 41. Ra2 {[%emt 0:02:34]} Re5 {[%emt 0:07:44]} 42. Nc3 {[%emt 0:01:55]} Kf7 {[%emt 0:00:56]} 43. Kf2 {[%emt 0:00:21]} Nc1 {[%emt 0:02:26]} 44. Rd2 {[%emt 0:01:36]} Rc5 {[%emt 0:02:07]} 45. Ne4 {[%emt 0:01:04]} Rc7 {[%emt 0:00:04]} 46. Nd6+ {[%emt 0:04:08]} Ke7 {[%emt 0:00:35]} 47. Nb5 {[%emt 0:01:55]} Rb7 {[%emt 0:04:22]} 48. Nd4 {[%emt 0:01:24]} a4 {[%emt 0:02:40]} 49. Nc6+ {[%emt 0:05:05]} Kf6 {[%emt 0:00:21]} 50. Rc2 {[%emt 0:01:53]} Rb1 {[%emt 0:02:15]} 51. Nb4 {[%emt 0:04:08]} a3 {[%emt 0:00:52]} 52. Ke3 {[%emt 0:04:59]} Rxb4 {[%emt 0:02:02]} 53. Rxc1 {[%emt 0:00:06]} a2 {[%emt 0:00:04]} 54. Rc6+ {[%emt 0:01:20]} Ke5 {[%emt 0:00:13]} 55. Rc5+ {[%emt 0:04:11]} Kd6 {[%emt 0:00:30]} 56. Ra5 {[%emt 0:00:07]} Rb2 {[%emt 0:00:05]} 57. g4 {[%emt 0:01:03]} Rxh2 {[%emt 0:01:17]} 58. f4 {[%emt 0:01:10]} Rc2 {[%emt 0:01:53]} 59. f5 {[%emt 0:01:00]} gxf5 {[%emt 0:02:38]} 60. gxf5 {[%emt 0:00:07]} Ke7 {[%emt 0:00:16]} 61. Ra6 {[%emt 0:00:38]} h5 {[%emt 0:01:14]} 62. Kf4 {[%emt 0:00:13]} h4 {[%emt 0:01:11]} 63. Kg4 {[%emt 0:00:49]} Rh2 {[%emt 0:01:00]} 64. Ra7+ {[%emt 0:00:40]} Kf6 {[%emt 0:00:13]} 65. Ra6+ {[%emt 0:00:23]} Ke7 {[%emt 0:04:07]} 66. Ra7+ {[%emt 0:00:11]} Kd6 {[%emt 0:01:21]} 67. f6 {[%emt 0:00:59]} Ke6 {[%emt 0:00:20]} 68. f7 {[%emt 0:00:11]} Rf2 {[%emt 0:00:12]} 69. Rxa2 {[%emt 0:01:05]} Rxf7 {[%emt 0:00:08]} 70. Kxh4 {[%emt 0:00:07]} 1/2-1/2

[Event "FIDE WYCC Girls U18 2023"]
[Site "Montesilvano"]
[Date "2023.11.23"]
[Round "10.15"]
[White "O'Carroll, Om"]
[Black "Skarbarchuk, Tetyana"]
[Result "1-0"]
[ECO "C15"]
[WhiteElo "1737"]
[BlackElo "2010"]
[Annotator "NA RC"]
[PlyCount "119"]
[EventDate "2023.11.13"]
[EventType "swiss"]
[EventCountry "ITA"]
[SourceTitle "playchess.com"]
[Source "ChessBase"]
[SourceQuality "1"]
[TimeControl "40/5400+30:1800+30"]

1. e4 {[%emt 0:00:02]} e6 {[%emt 0:00:07]} 2. d4 {[%emt 0:00:07]} d5 {[%emt 0:00:07]} 3. Nc3 {[%emt 0:00:05]} Bb4 {[%emt 0:00:25]} 4. Nge2 {[%emt 0:00:11]} dxe4 {[%emt 0:04:16]} 5. a3 {[%emt 0:00:13]} Bxc3+ {[%emt 0:10:04]} 6. Nxc3 {[%emt 0:01:18]} Nc6 {[%emt 0:09:59]} 7. Bf4 {[%emt 0:00:40]} Nf6 {[%emt 0:06:50]} 8. Bb5 {[%emt 0:02:40]} Nd5 {[%emt 0:08:14]} 9. Bxc6+ {[%emt 0:00:55]} bxc6 {[%emt 0:00:06]} 10. Bd2 {[%emt 0:00:14]} Nxc3 {[%emt 0:08:51]} 11. Bxc3 {[%emt 0:00:08]} Qg5 {[%emt 0:00:26]} 12. O-O {[%emt 0:10:01]} O-O {[%emt 0:02:40]} 13. Qe2 {[%emt 0:06:19]} f5 {[%emt 0:07:20]} 14. f3 {[%emt 0:04:19]} a5 {[%emt 0:04:26]} 15. Qc4 {[%emt 0:12:18]} Kh8 {[%emt 0:17:00]} 16. Qxc6 {[%emt 0:08:55]} Rb8 {[%emt 0:00:08]} 17. Qxc7 {[%emt 0:23:22]} Ba6 {[%emt 0:05:17]} 18. f4 {[%emt 0:01:04]} Qg4 {[%emt 0:01:07]} 19. Rf2 {[%emt 0:02:59]} Rbc8 {[%emt 0:04:07]} 20. Qxa5 {[%emt 0:02:28]} e3 {[%emt 0:00:12]} 21. Rf3 {[%emt 0:01:00]} Bb7 {[%emt 0:00:08]} 22. Rg3 {[%emt 0:00:58]} Qxf4 {[%emt 0:00:24]} 23. Rf1 {[%emt 0:02:36]} Qe4 {[%emt 0:00:31]} 24. Qe5 {[%emt 0:07:50]} Qxe5 {[%emt 0:00:49]} 25. dxe5 {[%emt 0:00:05]} f4 {[%emt 0:00:19]} 26. Rg4 {[%emt 0:01:43]} e2 {[%emt 0:02:24]} 27. Re1 {[%emt 0:03:49]} Ba6 {[%emt 0:01:16]} 28. Kf2 {[%emt 0:02:13]} Rf5 {[%emt 0:00:35]} 29. h4 {[%emt 0:02:05]} Rcf8 {[%emt 0:01:29]} 30. Bb4 {[%emt 0:00:54]} R8f7 {[%emt 0:02:17]} 31. Bd6 {[%emt 0:00:44]} h5 {[%emt 0:01:58]} 32. Rg6 {[%emt 0:00:16]} f3 {[%emt 0:00:03]} 33. g3 {[%emt 0:00:13]} Bc8 {[%emt 0:00:11]} 34. Rh1 {[%emt 0:01:36]} Kh7 {[%emt 0:00:12]} 35. Rg5 {[%emt 0:00:04]} Rxg5 {[%emt 0:00:11]} 36. hxg5 {[%emt 0:00:04]} Kg6 {[%emt 0:00:04]} 37. a4 {[%emt 0:02:23]} Ra7 {[%emt 0:02:22]} 38. Ra1 {[%emt 0:00:58]} Bb7 {[%emt 0:00:05]} 39. b4 {[%emt 0:00:27]} Kf5 {[%emt 0:01:19]} 40. c4 {[%emt 0:00:00]} Ke4 {[%emt 0:00:00]} 41. b5 {[%emt 0:10:29]} Kd3 {[%emt 0:06:34]} 42. c5 {[%emt 0:05:57]} Bd5 {[%emt 0:08:24]} 43. c6 {[%emt 0:00:54]} Ra8 {[%emt 0:00:54]} 44. c7 {[%emt 0:03:05]} h4 {[%emt 0:16:08]} 45. gxh4 {[%emt 0:00:29]} Rh8 {[%emt 0:00:08]} 46. Kg3 {[%emt 0:03:37]} Bb7 {[%emt 0:01:17]} 47. Bc5 {[%emt 0:01:56]} Kd2 {[%emt 0:01:40]} 48. Bf2 {[%emt 0:00:55]} Rc8 {[%emt 0:00:11]} 49. b6 {[%emt 0:00:44]} Ra8 {[%emt 0:00:38]} 50. Be1+ {[%emt 0:01:25]} Kc2 {[%emt 0:00:32]} 51. a5 {[%emt 0:00:40]} Kb2 {[%emt 0:00:39]} 52. Ra4 {[%emt 0:00:22]} Kb3 {[%emt 0:00:22]} 53. Rd4 {[%emt 0:00:19]} f2 {[%emt 0:00:41]} 54. Kxf2 {[%emt 0:00:41]} Rf8+ {[%emt 0:00:05]} 55. Kxe2 {[%emt 0:00:10]} Rf5 {[%emt 0:00:32]} 56. Bg3 {[%emt 0:00:41]} Ba6+ {[%emt 0:00:16]} 57. Kd2 {[%emt 0:01:47]} Rf3 {[%emt 0:00:21]} 58. Be1 {[%emt 0:00:15]} Rc3 {[%emt 0:00:45]} 59. Kd1 {[%emt 0:03:09]} Rc5 {[%emt 0:00:48]} 60. Rb4+ {[%emt 0:00:16]} 1-0

[Event "FIDE WYCC Girls U18 2023"]
[Site "Montesilvano"]
[Date "2023.11.23"]
[Round "10.16"]
[White "Tikvesli, Ceylin"]
[Black "Matute Escobar, Roxanny"]
[Result "1-0"]
[ECO "B08"]
[WhiteElo "1736"]
[BlackElo "1995"]
[Annotator "NA RC"]
[PlyCount "99"]
[EventDate "2023.11.13"]
[EventType "swiss"]
[EventCountry "ITA"]
[SourceTitle "playchess.com"]
[Source "ChessBase"]
[SourceQuality "1"]
[TimeControl "40/5400+30:1800+30"]

1. Nf3 Nf6 {[%emt 0:05:04]} 2. d4 {[%emt 0:00:12]} g6 {[%emt 0:00:25]} 3. Nc3 {[%emt 0:00:26]} Bg7 {[%emt 0:00:30]} 4. e4 {[%emt 0:00:28]} d6 {[%emt 0:00:07]} 5. Be3 {[%emt 0:00:14]} c6 {[%emt 0:00:13]} 6. Qd2 {[%emt 0:00:44]} b5 {[%emt 0:00:14]} 7. Bd3 {[%emt 0:05:42]} Nbd7 {[%emt 0:03:17]} 8. O-O-O {[%emt 0:12:33]} Ng4 {[%emt 0:06:29]} 9. Kb1 {[%emt 0:10:37]} Nxe3 {[%emt 0:00:22]} 10. Qxe3 {[%emt 0:00:06]} b4 {[%emt 0:00:45]} 11. Ne2 {[%emt 0:02:11]} Nf6 {[%emt 0:00:48]} 12. h3 {[%emt 0:02:20]} Qa5 {[%emt 0:04:45]} 13. Nc1 {[%emt 0:08:30]} Bd7 {[%emt 0:14:04]} 14. Nb3 {[%emt 0:06:24]} Qb6 {[%emt 0:00:33]} 15. Nfd2 {[%emt 0:02:32]} a5 {[%emt 0:04:11]} 16. Nc4 {[%emt 0:02:05]} Qa7 {[%emt 0:06:52]} 17. f4 {[%emt 0:13:48]} a4 {[%emt 0:01:17]} 18. Nc1 {[%emt 0:03:02]} O-O {[%emt 0:01:30]} 19. g4 {[%emt 0:06:34]} d5 {[%emt 0:09:54]} 20. Ne5 {[%emt 0:01:11]} dxe4 {[%emt 0:00:50]} 21. Bxe4 {[%emt 0:01:31]} Nd5 {[%emt 0:03:07]} 22. Bxd5 {[%emt 0:02:04]} cxd5 {[%emt 0:00:05]} 23. Ncd3 {[%emt 0:00:05]} b3 {[%emt 0:01:36]} 24. cxb3 {[%emt 0:01:12]} a3 {[%emt 0:06:21]} 25. bxa3 {[%emt 0:01:44]} Qxa3 {[%emt 0:00:08]} 26. Rh2 {[%emt 0:05:09]} Bb5 {[%emt 0:04:30]} 27. Nc5 {[%emt 0:01:04]} Rfc8 {[%emt 0:01:46]} 28. h4 {[%emt 0:02:26]} Bc4 {[%emt 0:10:31]} 29. h5 {[%emt 0:02:11]} Qb4 {[%emt 0:02:03]} 30. hxg6 fxg6 {[%emt 0:01:57]} 31. Nxc4 {[%emt 0:02:02]} dxc4 {[%emt 0:02:14]} 32. Qe6+ {[%emt 0:03:51]} Kf8 {[%emt 0:00:06]} 33. Qd5 {[%emt 0:02:53]} Rxc5 {[%emt 0:02:58]} 34. Qxc5 {[%emt 0:00:12]} Qxc5 {[%emt 0:00:04]} 35. dxc5 {[%emt 0:00:05]} cxb3 {[%emt 0:00:03]} 36. Rd3 {[%emt 0:01:08]} bxa2+ {[%emt 0:01:46]} 37. Rxa2 {[%emt 0:00:05]} Rb8+ {[%emt 0:00:05]} 38. Kc1 {[%emt 0:00:30]} Kf7 {[%emt 0:00:58]} 39. c6 {[%emt 0:00:17]} Rc8 {[%emt 0:00:42]} 40. Rc2 {[%emt 0:00:00]} h5 {[%emt 0:00:00]} 41. g5 {[%emt 0:07:30]} Ke8 {[%emt 0:01:56]} 42. c7 {[%emt 0:01:08]} h4 {[%emt 0:04:47]} 43. Kd1 {[%emt 0:01:17]} e5 {[%emt 0:01:24]} 44. fxe5 {[%emt 0:01:51]} Ke7 {[%emt 0:00:12]} 45. Rc5 {[%emt 0:03:41]} h3 {[%emt 0:00:56]} 46. Rxh3 {[%emt 0:00:35]} Ke6 {[%emt 0:00:05]} 47. Ke2 {[%emt 0:05:42]} Bf8 {[%emt 0:00:28]} 48. Rh8 {[%emt 0:01:43]} Bxc5 {[%emt 0:00:50]} 49. Rxc8 {[%emt 0:00:02]} Kd7 {[%emt 0:00:09]} 50. Rg8 {[%emt 0:00:16]} 1-0

[Event "FIDE WYCC Girls U18 2023"]
[Site "Montesilvano"]
[Date "2023.11.23"]
[Round "10.17"]
[White "Sovetbekova, Nurai"]
[Black "Wan, Qian"]
[Result "*"]
[WhiteElo "1801"]
[BlackElo "1945"]
[Annotator "NA RC"]
[PlyCount "52"]
[EventDate "2023.11.13"]
[EventType "swiss"]
[EventCountry "ITA"]
[SourceTitle "playchess.com"]
[Source "ChessBase"]
[SourceQuality "1"]
[TimeControl "40/5400+30:1800+30"]

1. d4 {[%emt 0:00:02]} d5 {[%emt 0:00:06]} 2. c4 {[%emt 0:00:06]} e6 {[%emt 0:00:04]} 3. Nc3 {[%emt 0:00:08]} Bb4 {[%emt 0:00:08]} 4. Nf3 {[%emt 0:00:08]} Nf6 {[%emt 0:00:08]} 5. Bg5 {[%emt 0:00:06]} h6 {[%emt 0:00:12]} 6. Bxf6 {[%emt 0:00:26]} Qxf6 {[%emt 0:00:04]} 7. e3 {[%emt 0:00:35]} O-O {[%emt 0:00:40]} 8. Qb3 {[%emt 0:00:10]} Bxc3+ {[%emt 0:05:40]} 9. Qxc3 {[%emt 0:00:52]} Qe7 {[%emt 0:07:00]} 10. Bd3 {[%emt 0:06:13]} c5 {[%emt 0:07:59]} 11. cxd5 {[%emt 0:12:25]} cxd4 {[%emt 0:00:11]} 12. Nxd4 {[%emt 0:04:47]} exd5 {[%emt 0:03:00]} 13. O-O {[%emt 0:00:28]} Nd7 {[%emt 0:06:08]} 14. Rac1 {[%emt 0:07:18]} Ne5 {[%emt 0:07:16]} 15. Bb1 {[%emt 0:07:34]} b6 {[%emt 0:07:36]} 16. Nc6 {[%emt 0:13:28]} Nxc6 {[%emt 0:05:00]} 17. Qxc6 {[%emt 0:00:03]} Be6 {[%emt 0:01:03]} 18. Qc2 {[%emt 0:05:09]} g6 {[%emt 0:00:37]} 19. Rfd1 {[%emt 0:01:09]} Rac8 {[%emt 0:02:04]} 20. Qd2 {[%emt 0:03:30]} Kg7 {[%emt 0:04:17]} 21. h3 {[%emt 0:05:38]} Qf6 {[%emt 0:03:32]} 22. a3 {[%emt 0:04:19]} Rfd8 {[%emt 0:11:14]} 23. Ba2 {[%emt 0:11:40]} d4 {[%emt 0:13:01]} 24. Rxc8 {[%emt 0:03:01]} Rxc8 {[%emt 0:00:07]} 25. Bxe6 {[%emt 0:00:59]} dxe3 {[%emt 0:00:08]} 26. Qxe3 {[%emt 0:00:36]} Re8 {[%emt 0:00:12]} *

[Event "FIDE WYCC Girls U18 2023"]
[Site "Montesilvano"]
[Date "2023.11.23"]
[Round "10.18"]
[White "Striskova, Lucia"]
[Black "Oviedo Acosta, Paula"]
[Result "1-0"]
[ECO "B43"]
[WhiteElo "2039"]
[BlackElo "1639"]
[Annotator "NA RC"]
[PlyCount "151"]
[EventDate "2023.11.13"]
[EventType "swiss"]
[EventCountry "ITA"]
[SourceTitle "playchess.com"]
[Source "ChessBase"]
[SourceQuality "1"]
[TimeControl "40/5400+30:1800+30"]

1. e4 {[%emt 0:00:04]} c5 {[%emt 0:02:01]} 2. Nf3 {[%emt 0:00:17]} e6 {[%emt 0:00:10]} 3. d4 {[%emt 0:00:40]} cxd4 {[%emt 0:00:08]} 4. Nxd4 {[%emt 0:00:10]} a6 {[%emt 0:00:07]} 5. Nc3 {[%emt 0:00:32]} b5 {[%emt 0:00:08]} 6. Bd3 {[%emt 0:00:17]} Qb6 {[%emt 0:00:09]} 7. Nb3 {[%emt 0:00:20]} Qc7 {[%emt 0:00:08]} 8. a4 {[%emt 0:00:46]} b4 {[%emt 0:00:38]} 9. Ne2 {[%emt 0:00:23]} Bb7 {[%emt 0:00:32]} 10. Bf4 {[%emt 0:01:00]} e5 {[%emt 0:09:38]} 11. Bd2 {[%emt 0:00:51]} Nf6 {[%emt 0:00:16]} 12. Ng3 {[%emt 0:01:30]} Nc6 {[%emt 0:10:47]} 13. O-O {[%emt 0:03:48]} g6 {[%emt 0:06:33]} 14. Bg5 {[%emt 0:18:17]} Ng8 {[%emt 0:10:06]} 15. Bc4 {[%emt 0:13:05]} Nd4 {[%emt 0:02:54]} 16. Qd3 {[%emt 0:00:31]} Ne6 {[%emt 0:03:35]} 17. Be3 {[%emt 0:01:30]} h5 {[%emt 0:03:03]} 18. Rad1 {[%emt 0:04:13]} Nf6 {[%emt 0:04:42]} 19. f3 {[%emt 0:09:07]} Nc5 {[%emt 0:15:42]} 20. Nxc5 {[%emt 0:03:44]} Bxc5 {[%emt 0:00:36]} 21. b3 {[%emt 0:05:44]} O-O {[%emt 0:07:00]} 22. Kh1 {[%emt 0:00:11]} Kg7 {[%emt 0:02:24]} 23. Bg5 {[%emt 0:00:54]} Nh7 {[%emt 0:01:38]} 24. Bc1 {[%emt 0:00:13]} Rad8 {[%emt 0:03:13]} 25. Bxa6 {[%emt 0:04:26]} Bxa6 {[%emt 0:02:33]} 26. Qxa6 {[%emt 0:00:10]} Bd4 {[%emt 0:00:12]} 27. Ne2 {[%emt 0:02:39]} Qxc2 {[%emt 0:02:54]} 28. Nxd4 {[%emt 0:00:07]} exd4 {[%emt 0:00:08]} 29. Qd3 {[%emt 0:02:43]} Qxd3 {[%emt 0:00:58]} 30. Rxd3 {[%emt 0:00:06]} d5 {[%emt 0:00:06]} 31. Rxd4 {[%emt 0:02:35]} dxe4 {[%emt 0:00:10]} 32. Rxe4 {[%emt 0:00:15]} Rb8 {[%emt 0:00:35]} 33. Bb2+ {[%emt 0:00:53]} Kh6 {[%emt 0:00:46]} 34. Kg1 {[%emt 0:00:46]} Rfd8 {[%emt 0:00:21]} 35. Rfe1 {[%emt 0:01:46]} Rd3 {[%emt 0:01:50]} 36. R1e3 {[%emt 0:01:23]} Rd5 {[%emt 0:00:31]} 37. Rd4 {[%emt 0:00:51]} Rc5 {[%emt 0:00:17]} 38. Kf2 {[%emt 0:01:07]} Ng5 {[%emt 0:01:24]} 39. Rc4 {[%emt 0:01:17]} Rxc4 {[%emt 0:01:24]} 40. bxc4 {[%emt 0:00:00]} Ra8 {[%emt 0:00:00]} 41. Rb3 {[%emt 0:01:38]} Rxa4 {[%emt 0:02:09]} 42. Bc1 {[%emt 0:00:26]} h4 {[%emt 0:03:45]} 43. Bd2 {[%emt 0:01:28]} Ra2 {[%emt 0:00:16]} 44. Ke1 {[%emt 0:00:21]} Kh5 {[%emt 0:03:40]} 45. h3 {[%emt 0:05:02]} Ra1+ {[%emt 0:04:45]} 46. Ke2 {[%emt 0:01:32]} Ne6 {[%emt 0:00:38]} 47. Rxb4 {[%emt 0:01:59]} Ra2 {[%emt 0:00:14]} 48. Kd3 {[%emt 0:04:46]} Nc5+ {[%emt 0:01:00]} 49. Ke3 {[%emt 0:00:41]} f5 {[%emt 0:02:37]} 50. Rb5 {[%emt 0:01:22]} Ne6 {[%emt 0:00:29]} 51. Rd5 {[%emt 0:08:47]} Kg5 {[%emt 0:03:38]} 52. Ra5 {[%emt 0:02:24]} Rb2 {[%emt 0:01:30]} 53. Kd3+ {[%emt 0:00:50]} Kh5 {[%emt 0:02:06]} 54. Kc3 {[%emt 0:00:07]} Rb1 {[%emt 0:00:17]} 55. Re5 {[%emt 0:00:38]} Rb6 {[%emt 0:00:48]} 56. c5 {[%emt 0:01:49]} Ra6 {[%emt 0:00:51]} 57. Bc1 {[%emt 0:06:28]} Nc7 {[%emt 0:01:41]} 58. Kb3 {[%emt 0:02:12]} Ne6 {[%emt 0:00:36]} 59. Be3 {[%emt 0:03:26]} Rc6 {[%emt 0:02:34]} 60. Kc4 {[%emt 0:00:43]} Ra6 {[%emt 0:00:15]} 61. c6 {[%emt 0:02:35]} Rxc6+ {[%emt 0:02:11]} 62. Kd5 {[%emt 0:00:07]} Rc2 {[%emt 0:00:45]} 63. Kxe6 {[%emt 0:00:50]} Rxg2 {[%emt 0:00:20]} 64. Kf6 {[%emt 0:00:29]} Ra2 {[%emt 0:01:13]} 65. Re8 {[%emt 0:00:51]} Ra6+ {[%emt 0:01:49]} 66. Kg7 {[%emt 0:00:32]} f4 {[%emt 0:00:30]} 67. Bxf4 {[%emt 0:01:56]} Ra7+ {[%emt 0:01:24]} 68. Kf6 {[%emt 0:00:50]} Ra6+ {[%emt 0:00:09]} 69. Re6 {[%emt 0:00:15]} Ra5 {[%emt 0:03:03]} 70. Re5+ {[%emt 0:00:08]} Rxe5 {[%emt 0:00:07]} 71. Bxe5 {[%emt 0:00:13]} Kh6 {[%emt 0:00:08]} 72. Bf4+ {[%emt 0:01:49]} Kh5 {[%emt 0:01:54]} 73. Bc1 {[%emt 0:00:37]} g5 {[%emt 0:00:35]} 74. Kf5 {[%emt 0:00:06]} Kh6 {[%emt 0:00:24]} 75. Bxg5+ {[%emt 0:00:07]} Kh5 {[%emt 0:00:05]} 76. Bxh4 {[%emt 0:00:34]} 1-0

[Event "FIDE WYCC Girls U18 2023"]
[Site "Montesilvano"]
[Date "2023.11.23"]
[Round "10.19"]
[White "Hyatt, Jessica"]
[Black "Sosovickova, Jana"]
[Result "*"]
[ECO "D30"]
[WhiteElo "1818"]
[BlackElo "2013"]
[Annotator "NA RC"]
[PlyCount "46"]
[EventDate "2023.11.13"]
[EventType "swiss"]
[EventCountry "ITA"]
[SourceTitle "playchess.com"]
[Source "ChessBase"]
[SourceQuality "1"]
[TimeControl "40/5400+30:1800+30"]

1. d4 {[%emt 0:05:49]} d5 {[%emt 0:00:07]} 2. c4 {[%emt 0:00:05]} e6 {[%emt 0:00:04]} 3. Nf3 {[%emt 0:00:06]} Nf6 {[%emt 0:00:25]} 4. e3 {[%emt 0:00:20]} Be7 {[%emt 0:02:33]} 5. Nc3 {[%emt 0:00:28]} O-O {[%emt 0:00:39]} 6. b3 {[%emt 0:00:48]} Nbd7 {[%emt 0:01:15]} 7. Bd3 {[%emt 0:00:27]} b6 {[%emt 0:08:13]} 8. cxd5 {[%emt 0:01:43]} exd5 {[%emt 0:03:04]} 9. O-O {[%emt 0:00:10]} Bb7 {[%emt 0:01:18]} 10. Qc2 {[%emt 0:00:46]} c5 {[%emt 0:06:45]} 11. Bb2 {[%emt 0:03:37]} Rc8 {[%emt 0:07:25]} 12. Rac1 {[%emt 0:03:54]} Bd6 {[%emt 0:11:27]} 13. Rfd1 {[%emt 0:08:18]} Qe7 {[%emt 0:07:42]} 14. Qe2 {[%emt 0:04:12]} Rfd8 {[%emt 0:05:07]} 15. Bf5 {[%emt 0:12:43]} g6 {[%emt 0:03:49]} 16. Bh3 {[%emt 0:13:47]} a6 {[%emt 0:16:08]} 17. Rc2 {[%emt 0:21:59]} Rc7 {[%emt 0:01:39]} 18. Na4 {[%emt 0:01:22]} b5 {[%emt 0:03:13]} 19. Nxc5 {[%emt 0:01:58]} Nxc5 {[%emt 0:00:59]} 20. dxc5 {[%emt 0:00:06]} Rxc5 {[%emt 0:00:59]} 21. Rxc5 {[%emt 0:02:16]} Bxc5 {[%emt 0:00:05]} 22. Qc2 {[%emt 0:01:29]} Ne4 {[%emt 0:01:52]} 23. Nd2 {[%emt 0:04:12]} Nxf2 {[%emt 0:00:45]} *

[Event "FIDE WYCC Girls U18 2023"]
[Site "Montesilvano"]
[Date "2023.11.23"]
[Round "10.20"]
[White "Sasvatha A"]
[Black "Wisniowski, Natalie"]
[Result "0-1"]
[ECO "D10"]
[WhiteElo "1568"]
[BlackElo "1901"]
[Annotator "NA"]
[PlyCount "64"]
[EventDate "2023.11.13"]
[EventType "swiss"]
[EventCountry "ITA"]
[SourceTitle "playchess.com"]
[Source "ChessBase"]
[SourceQuality "1"]
[TimeControl "40/5400+30:1800+30"]

1. d4 {[%emt 0:04:37]} d5 {[%emt 0:00:05]} 2. Nf3 {[%emt 0:00:11]} Nf6 {[%emt 0:00:13]} 3. c4 {[%emt 0:00:50]} c6 {[%emt 0:00:13]} 4. cxd5 {[%emt 0:00:06]} cxd5 {[%emt 0:00:11]} 5. Nc3 {[%emt 0:00:04]} Nc6 {[%emt 0:00:14]} 6. a3 {[%emt 0:00:44]} Bf5 {[%emt 0:01:50]} 7. Qb3 {[%emt 0:00:31]} Na5 {[%emt 0:01:52]} 8. Qa4+ {[%emt 0:00:46]} Bd7 {[%emt 0:00:25]} 9. Qd1 {[%emt 0:00:08]} e6 {[%emt 0:02:11]} 10. e3 {[%emt 0:00:10]} Rc8 {[%emt 0:01:59]} 11. Ne5 {[%emt 0:02:36]} Bd6 {[%emt 0:01:55]} 12. Nxd7 {[%emt 0:01:15]} Qxd7 {[%emt 0:00:28]} 13. Bd2 {[%emt 0:00:31]} Nc6 {[%emt 0:03:23]} 14. b4 {[%emt 0:03:21]} O-O {[%emt 0:01:36]} 15. Na4 {[%emt 0:00:24]} Qe7 {[%emt 0:03:48]} 16. Bd3 {[%emt 0:01:23]} e5 {[%emt 0:04:48]} 17. b5 {[%emt 0:02:05]} Nb8 {[%emt 0:03:05]} 18. Bf5 {[%emt 0:02:04]} Nbd7 {[%emt 0:08:28]} 19. dxe5 {[%emt 0:01:45]} Qxe5 {[%emt 0:02:02]} 20. Bh3 {[%emt 0:05:53]} Rc4 {[%emt 0:05:27]} 21. Rb1 {[%emt 0:03:04]} Rfc8 {[%emt 0:13:07]} 22. Nb2 {[%emt 0:01:53]} Rc2 {[%emt 0:04:26]} 23. Nd3 {[%emt 0:00:37]} Qe4 {[%emt 0:00:19]} 24. Nb4 {[%emt 0:01:04]} R2c5 {[%emt 0:07:02]} 25. a4 {[%emt 0:02:00]} Rc4 {[%emt 0:01:03]} 26. Na2 {[%emt 0:03:28]} Rc2 {[%emt 0:07:53]} 27. Nb4 {[%emt 0:01:27]} Rxd2 {[%emt 0:01:33]} 28. Kxd2 {[%emt 0:00:53]} Bxb4+ {[%emt 0:00:15]} 29. Ke2 {[%emt 0:00:08]} Qc4+ {[%emt 0:04:33]} 30. Qd3 {[%emt 0:00:26]} Qa2+ {[%emt 0:00:27]} 31. Kd1 {[%emt 0:03:06]} Ne4 {[%emt 0:00:52]} 32. Qxe4 {[%emt 0:00:43]} Qd2# {[%emt 0:00:08]} 0-1